bitfinex/quotes_ETHUSD_20220111
["timestamp","ask_amount","ask_price","bid_price","bid_amount"]
[1641869698791,5.6,3123.3,3121.3,3.33453265]
[1641869698989,5.6,3123.3,3121.3,2.33453265]
[1641869698990,0.01224177,3122.7,3121.3,2.33453265]
[1641869699192,0.461,3122.6,3121.4,0.00682108]
[1641869699389,3.769,3122.6,3121.4,0.00682108]
[1641869699587,3.769,3122.6,3121.3,0.00738951]
[1641869699788,3.769,3122.6,3121.6,1.23532037]
[1641869699988,3.769,3122.6,3121.3,1.53968019]
[1641869700187,3.769,3122.6,3121.7,0.00511581]
[1641869700387,0.461,3122.6,3121.7,0.00511581]
[1641869700588,1.60258,3122.5,3121.7,0.00511581]
[1641869700789,0.461,3122.4,3120.9,0.08329475]
[1641869700988,1.27019793,3122.4,3121.1,1.46946859]
[1641869701187,0.00738951,3122.3,3121.1,1.46946859]
[1641869701591,3.1621,3122.6,3121.1,1.46946859]
[1641869701592,0.00682108,3122.2,3121.1,1.46946859]
[1641869701790,0.00682108,3122.2,3121.1,2.05712046]
[1641869701986,0.00625266,3122.1,3121.1,2.05712046]
[1641869702191,0.00625266,3122.1,3121.2,0.80097]
[1641869702388,8.766,3123.2,3121.4,1.60172]
[1641869702389,0.00568424,3122.0,3121.4,1.60172]
[1641869702635,0.00568424,3122.0,3121.5,4.27268101]
[1641869702831,0.00511581,3121.9,3121.6,0.00860096]
[1641869703030,0.00511581,3121.9,3121.6,1.0]
[1641869703230,0.00454739,3121.8,3121.6,1.0]
[1641869703631,0.01219957,3123.5,3121.6,4.15]
[1641869703632,0.00397897,3121.7,3121.6,4.15]
[1641869704031,0.01364217,3121.7,3121.6,8.13431248]
[1641869704231,4.217e-05,3121.7,3121.6,8.21498785]
[1641869704436,4.217e-05,3121.7,3121.6,8.22517731]
[1641869704631,4.217e-05,3121.7,3121.6,6.51018946]
[1641869704831,4.217e-05,3121.7,3121.6,10.40569552]
[1641869705035,4.217e-05,3121.7,3121.6,6.51018946]
[1641869705433,4.217e-05,3121.7,3121.6,10.26855875]
[1641869705835,4.217e-05,3121.7,3121.6,0.01018946]
[1641869706581,0.01487718,3121.6,3121.4,0.0113263]
[1641869706782,0.01487718,3121.6,3121.2,0.01246315]
[1641869706984,4.217e-05,3121.7,3121.3,2.6332811]
[1641869707183,4.217e-05,3121.7,3121.4,1.0]
[1641869707385,4.217e-05,3121.7,3121.4,0.0113263]
[1641869707681,4.217e-05,3121.7,3121.4,0.0913963]
[1641869708081,4.217e-05,3121.7,3121.5,0.01075788]
[1641869708782,4.217e-05,3121.7,3121.5,0.81164338]
[1641869708982,4.217e-05,3121.7,3121.5,1.11164338]
[1641869709184,4.217e-05,3121.7,3121.5,2.11164338]
[1641869709384,4.217e-05,3121.7,3121.5,0.01075788]
[1641869710331,4.217e-05,3121.7,3121.1,0.01303157]
[1641869711231,4.217e-05,3121.7,3121.0,0.0136]
[1641869712035,0.02690281,3121.6,3121.0,0.0136]
[1641869712236,4.217e-05,3121.7,3121.0,0.0136]
[1641869712237,0.46104217,3121.7,3121.0,0.0136]
[1641869712434,0.02085493,3121.6,3120.9,0.01416842]
[1641869712634,0.46104217,3121.7,3120.9,0.01416842]
[1641869712834,0.46104217,3121.7,3120.8,1.46908097]
[1641869713232,0.46104217,3121.7,3120.9,0.01416842]
[1641869713433,0.46104217,3121.7,3120.8,1.46908097]
[1641869713434,3.85,3121.6,3120.6,1.7554595]
[1641869713879,0.01404135,3121.5,3120.7,0.00113685]
[1641869714279,0.01784804,3121.3,3120.7,0.00113685]
[1641869714481,0.00284212,3121.4,3120.7,0.00113685]
[1641869714685,0.00170527,3121.2,3120.5,1.21547398]
[1641869714884,0.00227369,3121.3,3120.3,0.00341054]
[1641869715082,0.00113685,3121.1,3120.6,0.00170527]
[1641869715284,0.00170527,3121.2,3120.3,1.19276033]
[1641869715488,0.00397896,3121.6,3120.2,0.00397897]
[1641869715683,0.00113685,3121.1,3120.4,0.00284212]
[1641869715882,0.00341054,3121.5,3120.3,1.51661075]
[1641869716085,0.00397896,3121.6,3120.3,2.11661075]
[1641869716284,0.00284212,3121.4,3120.4,0.00284212]
[1641869716482,0.00341054,3121.5,3120.4,0.00284212]
[1641869716684,0.00227369,3121.3,3120.4,0.00284212]
[1641869716885,0.00284212,3121.4,3120.4,0.00284212]
[1641869717084,0.00170527,3121.2,3120.4,0.00284212]
[1641869717282,0.00227369,3121.3,3120.4,1.53856398]
[1641869717543,12.94230759,3121.7,3120.4,1.53856398]
[1641869717544,0.00113685,3121.1,3120.4,1.53856398]
[1641869717726,0.00170527,3121.2,3120.5,0.0022737]
[1641869717926,3.96119266,3121.6,3120.5,0.0022737]
[1641869718130,0.00113685,3121.1,3120.5,0.0022737]
[1641869718327,4.5185831,3121.5,3120.4,0.00284212]
[1641869718727,0.00284212,3121.4,3120.4,0.00284212]
[1641869718928,1.26531212,3121.4,3120.4,0.00284212]
[1641869719128,0.00227369,3121.3,3120.4,0.00284212]
[1641869719629,1.26247,3121.4,3120.4,0.00284212]
[1641869719630,0.00170527,3121.2,3120.4,0.00284212]
[1641869719829,0.00170527,3121.2,3120.2,0.00397897]
[1641869720034,0.461,3121.4,3120.2,0.00397897]
[1641869720035,0.00113685,3121.1,3120.2,0.00397897]
[1641869720431,0.00227369,3121.3,3120.1,0.00454739]
[1641869720634,0.00227369,3121.3,3120.8,1.26167662]
[1641869720832,7.4744029,3122.4,3120.9,1.49639522]
[1641869720833,0.00170527,3121.2,3120.9,1.49639522]
[1641869721032,0.00170527,3121.2,3120.9,1.48400411]
[1641869721280,0.00113685,3121.1,3120.9,1.48400411]
[1641869721681,0.00625266,3122.0,3120.9,1.48400411]
[1641869722082,0.00568423,3121.9,3121.4,1.2522041]
[1641869722484,0.00511581,3121.8,3121.4,0.3]
[1641869722787,0.00454739,3121.7,3121.4,0.3]
[1641869722982,0.00454739,3121.7,3120.8,1.56167662]
[1641869723182,0.00397896,3121.6,3120.9,0.3]
[1641869723385,0.00397896,3121.6,3121.0,0.8241642]
[1641869723585,0.00341054,3121.5,3121.0,3.17166431]
[1641869723783,0.00341054,3121.5,3121.0,2.67065431]
[1641869723982,0.00284212,3121.4,3121.0,1.67065431]
[1641869724183,0.00284212,3121.4,3121.1,1.3]
[1641869724382,0.00227369,3121.3,3121.1,0.3]
[1641869724582,0.00227369,3121.3,3121.1,1.0]
[1641869724786,0.00170527,3121.2,3121.0,1.97065431]
[1641869725038,2.72414272,3122.6,3121.1,5.61293322]
[1641869725228,2.72414272,3122.6,3121.2,0.01108708]
[1641869725431,0.0073895,3122.5,3121.2,1.3]
[1641869725630,0.0073895,3122.5,3121.2,1.6]
[1641869725828,0.00682108,3122.4,3121.3,4.20929969]
[1641869726030,0.00682108,3122.4,3122.1,0.3]
[1641869726230,0.00625266,3122.3,3122.1,0.3]
[1641869726429,0.00625266,3122.3,3121.2,0.3]
[1641869726631,0.00568423,3122.2,3121.2,1.0]
[1641869726829,0.00568423,3122.2,3121.1,0.6]
[1641869727032,2.72414272,3122.4,3121.0,1.37065431]
[1641869727033,0.00511581,3122.1,3121.0,1.37065431]
[1641869727432,2.72414272,3122.2,3121.0,1.37065431]
[1641869727433,0.00454739,3122.0,3121.0,1.37065431]
[1641869727729,0.00397896,3121.9,3121.0,1.37065431]
[1641869727933,0.00397896,3121.9,3120.7,3.78844142]
[1641869728132,0.00341054,3121.8,3121.2,1.13925495]
[1641869728530,0.00284212,3121.7,3121.2,1.73925495]
[1641869728814,0.00227369,3121.6,3120.9,0.3]
[1641869729008,0.00227369,3121.6,3120.8,0.00227369]
[1641869729208,0.00170527,3121.5,3121.0,0.00113685]
[1641869729408,0.00170527,3121.5,3120.6,1.4074033]
[1641869729610,0.00113685,3121.4,3120.7,0.00284212]
[1641869729806,0.00113685,3121.4,3120.9,1.4443848]
[1641869730009,2.72755326,3121.8,3120.9,1.7443848]
[1641869730207,3.18855326,3121.8,3121.0,0.00113685]
[1641869730407,0.00284212,3121.7,3121.0,0.00113685]
[1641869730612,0.00284212,3121.7,3121.1,1.36291152]
[1641869730808,0.00227369,3121.6,3121.1,1.36291152]
[1641869731209,0.00170527,3121.5,3121.1,1.36291152]
[1641869731608,0.00113685,3121.4,3121.1,1.36291152]
[1641869731808,0.00113685,3121.4,3121.0,0.00113685]
[1641869732011,0.00227369,3121.6,3121.0,0.00113685]
[1641869732411,0.00170527,3121.5,3121.0,0.00113685]
[1641869732844,0.00113685,3121.4,3121.0,0.00113685]
[1641869733336,0.00227369,3121.6,3121.0,0.00113685]
[1641869733736,0.00170527,3121.5,3121.0,0.00113685]
[1641869734134,0.00113685,3121.4,3121.0,0.00113685]
[1641869734637,0.46270527,3121.5,3121.0,0.00113685]
[1641869735035,0.46270527,3121.5,3120.6,0.00341054]
[1641869735036,0.00113685,3121.4,3120.6,0.00341054]
[1641869735234,0.00113685,3121.4,3120.3,0.00511581]
[1641869735433,0.00113685,3121.4,3120.3,1.35073693]
[1641869735634,0.00113685,3121.4,3120.4,1.14450599]
[1641869735841,0.00113685,3121.4,3120.4,1.14905338]
[1641869736033,0.00113685,3121.4,3120.5,0.00397897]
[1641869736582,3.78957827,3121.4,3120.5,0.00397897]
[1641869736783,6.51372099,3121.4,3120.5,0.00397897]
[1641869737182,6.46372099,3121.4,3120.4,0.00454739]
[1641869737582,7.69542099,3121.4,3120.4,0.00568424]
[1641869737781,0.01323274,3121.3,3120.3,0.00625266]
[1641869737984,2.72414272,3121.3,3120.3,0.00625266]
[1641869738183,4.0575916,3121.2,3120.3,0.00625266]
[1641869738584,2.72414272,3121.1,3120.3,0.00625266]
[1641869739688,2.72414272,3121.1,3120.2,0.00682109]
[1641869740153,2.72414272,3121.3,3120.2,0.00682109]
[1641869740748,2.72414272,3121.3,3120.2,0.01922439]
[1641869740952,2.72414272,3121.3,3120.2,1.01922439]
[1641869741150,2.72414272,3121.3,3120.5,0.8012016]
[1641869741451,2.72414272,3121.3,3120.6,1.52184532]
[1641869741649,2.72414272,3121.3,3120.6,0.00454739]
[1641869741848,2.72414272,3121.3,3120.7,0.00397897]
[1641869742051,2.72414272,3121.3,3120.7,0.3]
[1641869742249,2.72414272,3121.3,3120.7,0.30397897]
[1641869742451,2.72414272,3121.4,3120.8,0.00341054]
[1641869742849,2.72414272,3121.4,3120.4,1.31521945]
[1641869743047,2.72414272,3121.4,3120.4,1.91521945]
[1641869743247,2.72414272,3121.4,3120.5,0.00511582]
[1641869744692,2.72414272,3121.4,3121.2,1.29019175]
[1641869745100,2.72414272,3121.4,3121.2,1.59019175]
[1641869745692,2.72414272,3121.8,3121.2,1.59019175]
[1641869746091,2.72641641,3121.8,3121.2,1.59019175]
[1641869746896,2.72641641,3121.8,3121.2,1.89019175]
[1641869747297,0.00227369,3121.8,3121.2,1.89019175]
[1641869748336,0.00227369,3121.8,3121.2,1.59019175]
[1641869750441,0.00227369,3121.8,3121.2,1.29019175]
[1641869752584,2.72641641,3121.8,3121.2,1.29019175]
[1641869753185,0.00227369,3121.8,3121.2,1.29019175]
[1641869754393,0.00227369,3121.8,3121.2,4.49019175]
[1641869757535,0.00227369,3121.8,3121.2,4.39019175]
[1641869759386,0.00227369,3121.8,3121.2,3.2]
[1641869761790,0.01100679,3121.6,3121.2,3.2]
[1641869762190,2.42032137,3121.7,3121.2,3.2]
[1641869762391,6.43528317,3121.7,3121.2,3.2]
[1641869762634,0.00113684,3121.6,3121.2,3.2]
[1641869762834,2.72527956,3121.6,3121.2,3.2]
[1641869764035,0.00113684,3121.6,3121.2,3.2]
[1641869764636,0.00113684,3121.6,3120.8,1.5608282]
[1641869765038,3.20113684,3121.6,3120.9,0.00284212]
[1641869766038,2.72414272,3121.5,3120.9,0.00284212]
[1641869767092,0.02744868,3121.4,3120.6,0.00454739]
[1641869767391,2.72414272,3121.5,3120.6,0.00454739]
[1641869767790,2.72414272,3121.5,3120.6,1.21006869]
[1641869767991,10.55801313,3121.6,3120.6,1.21006869]
[1641869767992,2.72414272,3121.3,3120.6,1.21006869]
[1641869768190,2.72414272,3121.3,3120.7,0.00397897]
[1641869768392,2.72414272,3121.3,3120.7,0.87381553]
[1641869768592,2.72414272,3121.5,3120.7,0.87381553]
[1641869768791,2.72414272,3121.5,3120.8,0.00341054]
[1641869768991,2.72414272,3121.5,3120.8,0.8732471]
[1641869769192,2.72414272,3121.5,3120.8,0.00341054]
[1641869769392,2.72414272,3121.5,3120.9,0.00284212]
[1641869769593,2.72414272,3121.5,3120.7,0.00397897]
[1641869769793,2.72414272,3121.5,3120.7,0.87381553]
[1641869770235,2.72414272,3121.5,3120.8,0.00341054]
[1641869770736,2.72414272,3121.5,3120.7,0.00397897]
[1641869770936,2.72414272,3121.5,3120.7,0.89161754]
[1641869771335,2.72414272,3121.5,3120.8,0.00341054]
[1641869771937,2.72414272,3121.5,3120.7,0.00397897]
[1641869772137,2.72414272,3121.5,3120.7,0.89161754]
[1641869772538,2.72414272,3121.5,3120.8,0.00341054]
[1641869773139,2.72414272,3121.5,3120.7,0.00397897]
[1641869773340,3.91895007,3121.4,3120.7,0.90572462]
[1641869773789,3.89448342,3121.4,3120.8,0.00341054]
[1641869773989,3.89448342,3121.4,3120.8,0.90515619]
[1641869774190,3.08451872,3121.5,3120.8,0.90515619]
[1641869774394,3.08451872,3121.5,3120.9,0.00284212]
[1641869774395,2.72414272,3121.3,3120.9,0.00284212]
[1641869774896,2.72414272,3121.3,3120.2,1.09007621]
[1641869774897,2.72414272,3121.3,3120.7,1.41034941]
[1641869775092,2.72414272,3121.3,3120.7,2.30414677]
[1641869775298,4.26843457,3121.5,3120.8,0.00341054]
[1641869775299,2.72414272,3121.4,3120.8,0.00341054]
[1641869775494,2.72414272,3121.4,3120.8,0.8972079]
[1641869775896,2.72414272,3121.4,3120.9,0.00284212]
[1641869776493,2.72414272,3121.4,3120.3,0.00625266]
[1641869776694,2.72414272,3121.4,3120.3,0.91384317]
[1641869777095,2.72414272,3121.4,3120.5,1.26380257]
[1641869777296,2.72414272,3121.4,3120.5,2.17139308]
[1641869777544,2.72414272,3121.4,3120.6,0.00454739]
[1641869777734,2.72414272,3121.4,3120.6,0.9121379]
[1641869778036,2.72414272,3121.4,3120.7,0.00397897]
[1641869778233,2.72414272,3121.4,3120.7,0.91156948]
[1641869778634,2.72414272,3121.4,3120.8,0.00341054]
[1641869778836,2.72414272,3121.4,3120.8,0.93394274]
[1641869779235,2.72414272,3121.4,3120.9,0.00284212]
[1641869779437,2.72414272,3121.4,3120.9,0.93337432]
[1641869779838,2.72414272,3121.4,3121.0,0.0022737]
[1641869780037,2.72414272,3121.4,3121.0,0.9328059]
[1641869780436,2.72414272,3121.4,3121.1,0.00170527]
[1641869781038,2.72414272,3121.4,3120.6,0.00454739]
[1641869783483,2.72414272,3121.4,3121.0,1.360868]
[1641869783883,2.72414272,3121.4,3121.1,0.00170527]
[1641869785153,2.72414272,3121.4,3120.3,0.00625266]
[1641869785352,3.08451872,3121.5,3120.3,0.73470784]
[1641869785954,2.72414272,3121.4,3120.4,0.00568424]
[1641869786152,2.72414272,3121.4,3120.8,1.23729926]
[1641869786550,4.34313409,3121.4,3120.9,0.00284212]
[1641869787755,2.72414272,3121.4,3120.9,0.00284212]
[1641869791285,2.72414272,3121.4,3121.3,1.51746598]
[1641869792541,2.72414272,3121.4,3121.3,3.05161916]
[1641869792736,3.2,3121.6,3121.3,7.54661909]
[1641869792934,3.2,3121.6,3121.3,5.35817767]
[1641869793134,3.2,3121.6,3121.3,3.75817767]
[1641869793334,3.2,3121.6,3121.4,1.0]
[1641869793534,3.2,3121.6,3121.4,0.70655851]
[1641869795137,3.2,3121.6,3121.3,1.51746598]
[1641869795538,3.2,3121.6,3121.3,2.25239963]
[1641869796990,3.2,3121.6,3120.9,1.60479132]
[1641869796991,0.04314414,3121.5,3120.9,0.00284212]
[1641869797188,3.2,3121.6,3120.9,0.00284212]
[1641869797394,3.2,3121.6,3120.8,0.73104503]
[1641869797590,4.00137,3121.6,3120.8,0.73445557]
[1641869797789,8.05970449,3121.6,3120.9,0.00284212]
[1641869797988,9.67869586,3121.6,3120.9,0.73388715]
[1641869798193,0.03776784,3121.5,3120.9,0.73388715]
[1641869798391,9.67869586,3121.6,3121.0,0.0022737]
[1641869798590,9.67869586,3121.6,3121.0,0.38826296]
[1641869798994,9.67869586,3121.6,3121.1,0.00170527]
[1641869799601,9.67869586,3121.6,3120.7,0.00397897]
[1641869799794,9.67869586,3121.6,3120.7,0.38996823]
[1641869800235,9.67869586,3121.6,3120.8,0.00341054]
[1641869800438,8.87732586,3121.6,3120.8,0.31422916]
[1641869800637,4.81899137,3121.6,3120.8,0.31422916]
[1641869800839,4.81899137,3121.6,3120.9,0.00284212]
[1641869801040,4.81899137,3121.6,3120.9,4.50572411]
[1641869801436,3.2,3121.6,3121.4,1.46718441]
[1641869801641,3.2,3121.6,3121.4,1.77800303]
[1641869802036,3.2,3121.6,3121.4,1.46718441]
[1641869802536,3.2,3121.6,3121.5,1.34017246]
[1641869804293,3.2,3121.6,3121.5,1.29017246]
[1641869806097,3.2,3121.6,3121.5,2.59017246]
[1641869806299,1.61899137,3122.4,3121.6,5.6]
[1641869806493,1.61899137,3122.4,3121.8,0.01568269]
[1641869806692,0.00511581,3122.3,3121.9,1.2617]
[1641869807106,0.00454738,3122.2,3122.0,2.48300107]
[1641869807548,0.00397896,3122.1,3122.0,3.48300107]
[1641869807744,0.00397896,3122.1,3122.0,1.32460636]
[1641869810548,0.00397896,3122.1,3121.0,0.0022737]
[1641869810750,0.04336781,3122.0,3121.2,0.34118852]
[1641869810949,0.80129,3121.9,3121.2,0.34118852]
[1641869811150,0.00284211,3121.9,3121.2,0.34118852]
[1641869811394,0.00227369,3121.8,3121.2,0.34118852]
[1641869811594,0.00227369,3121.8,3121.0,0.0022737]
[1641869811793,0.00170527,3121.7,3121.5,1.55838525]
[1641869812198,0.00113684,3121.6,3121.5,1.55838525]
[1641869815639,3.20113684,3121.6,3121.5,1.55838525]
[1641869816038,5.92562343,3121.6,3121.5,1.55838525]
[1641869818641,5.92562343,3121.6,3120.7,0.00397897]
[1641869819288,2.72448659,3121.5,3120.7,0.00397897]
[1641869819893,2.72448659,3121.5,3120.7,0.30397897]
[1641869820090,2.72448659,3121.5,3121.4,1.24868392]
[1641869821090,2.67448659,3121.5,3121.4,1.24868392]
[1641869822294,2.67448659,3121.5,3120.8,0.00341054]
[1641869822743,2.67448659,3121.5,3120.5,0.00511582]
[1641869822943,2.67448659,3121.5,3120.9,0.00284212]
[1641869823151,2.67448659,3121.5,3120.5,0.30511582]
[1641869823345,2.67448659,3121.5,3120.6,1.3890263]
[1641869823648,2.67448659,3121.5,3120.7,0.00397897]
[1641869824445,2.67448659,3121.5,3121.1,1.53921072]
[1641869824845,2.67448659,3121.5,3121.2,0.00113685]
[1641869826051,2.67448659,3121.5,3121.3,0.00788464]
[1641869826295,2.67448659,3121.5,3121.2,0.00113685]
[1641869828595,0.01336358,3121.4,3121.2,0.00113685]
[1641869829195,2.67448659,3121.5,3121.2,0.00113685]
[1641869829394,3.20113684,3121.6,3121.2,0.00113685]
[1641869830447,3.96332049,3121.5,3120.7,0.00397897]
[1641869830645,3.96332049,3121.5,3120.6,0.00454739]
[1641869830843,3.96332049,3121.5,3120.3,0.00625266]
[1641869831044,3.96332049,3121.5,3120.5,1.32648201]
[1641869831447,3.96332049,3121.5,3120.6,0.00454739]
[1641869833447,5.58231186,3121.5,3120.6,0.00454739]
[1641869834191,0.01701874,3121.4,3120.6,0.00454739]
[1641869834391,1.61899137,3121.4,3120.3,0.00625266]
[1641869834590,4.89952574,3121.3,3120.3,0.00625266]
[1641869834990,4.89952574,3121.3,3120.3,1.39530989]
[1641869835192,1.61899137,3121.3,3120.3,1.39530989]
[1641869835398,1.61899137,3121.3,3120.4,0.00568424]
[1641869835790,3.96913423,3121.2,3120.4,0.00568424]
[1641869836393,4.46216461,3121.5,3120.4,0.00568424]
[1641869836794,1.61899137,3121.4,3120.4,0.00568424]
[1641869837292,6.08115598,3121.5,3120.4,0.00568424]
[1641869837750,0.461,3121.4,3120.4,0.00568424]
[1641869837954,3.82225759,3121.3,3120.3,0.00625266]
[1641869838151,0.461,3121.2,3120.3,0.00625266]
[1641869838752,1.61899137,3121.1,3120.3,0.00625266]
[1641869839052,0.80154,3120.9,3120.3,0.00625266]
[1641869839852,1.61899137,3121.0,3120.3,0.00625266]
[1641869840051,5.63153272,3121.0,3120.3,0.00625266]
[1641869840651,4.01254135,3121.0,3120.3,0.00625266]
[1641869841291,2.72534271,3120.9,3120.3,0.00625266]
[1641869841892,3.95930264,3120.8,3120.3,0.00625266]
[1641869842290,3.52688271,3120.9,3120.3,0.00625266]
[1641869842892,3.93413593,3120.8,3120.3,0.00625266]
[1641869843095,3.97428692,3120.8,3120.3,0.00625266]
[1641869843289,3.52688271,3120.9,3120.3,0.00625266]
[1641869843693,2.72534271,3120.8,3120.3,0.00625266]
[1641869843890,6.65560636,3120.8,3120.3,0.00625266]
[1641869844090,2.72534271,3120.8,3120.3,0.00625266]
[1641869844294,6.71202171,3120.8,3120.3,0.00625266]
[1641869844490,2.72534271,3120.8,3120.3,0.00625266]
[1641869844691,4.1805595,3121.0,3120.3,0.00625266]
[1641869844692,2.72534271,3120.7,3120.3,0.00625266]
[1641869845342,2.35,3120.6,3120.2,0.90625266]
[1641869845643,2.35170527,3120.6,3120.2,0.90625266]
[1641869845839,0.00170527,3120.6,3120.2,0.90625266]
[1641869846239,2.72534271,3120.5,3120.2,0.90625266]
[1641869846840,0.00170527,3120.6,3120.2,0.90625266]
[1641869847443,2.72704798,3120.6,3120.2,0.90625266]
[1641869849700,6.78578279,3120.6,3120.2,0.90625266]
[1641869850099,0.0112698,3120.5,3120.2,0.90625266]
[1641869850304,6.78578279,3120.6,3120.2,0.90625266]
[1641869850601,2.72534271,3120.4,3120.2,0.90625266]
[1641869851202,2.72534271,3120.5,3120.2,0.90625266]
[1641869852548,2.72534271,3120.5,3120.3,0.02732238]
[1641869852750,2.72534271,3120.5,3120.3,0.00637442]
[1641869852949,2.72534271,3120.5,3120.2,1.20625266]
[1641869853148,0.00170527,3120.6,3120.3,0.3]
[1641869853351,0.00170527,3120.6,3120.2,1.20625266]
[1641869853352,0.00170527,3120.6,3120.4,1.48180448]
[1641869853547,0.00170527,3120.6,3120.4,1.78180448]
[1641869853747,0.00170527,3120.6,3120.4,1.48180448]
[1641869854049,0.00170527,3120.6,3120.2,0.90625266]
[1641869855048,0.00170527,3120.6,3120.5,1.3316661]
[1641869858901,0.00170527,3120.6,3120.5,3.7316661]
[1641869859204,0.00170527,3120.6,3120.5,9.57377859]
[1641869859404,0.00170527,3120.6,3120.5,5.7926661]
[1641869859801,0.00170527,3120.6,3120.5,1.7926661]
[1641869860041,0.00170527,3120.6,3120.5,2.0926661]
[1641869860242,0.00170527,3120.6,3120.5,1.7926661]
[1641869860444,0.00170527,3120.6,3120.5,1.3316661]
[1641869861043,0.00170527,3120.6,3120.3,0.8012135]
[1641869861440,0.00113684,3120.5,3120.3,0.8012135]
[1641869862142,0.00113684,3120.5,3120.4,1.53205988]
[1641869871895,0.00113684,3120.5,3120.4,53.88205988]
[1641869872093,0.00113684,3120.5,3120.4,55.18205988]
[1641869873998,0.00113684,3120.5,3120.4,53.88205988]
[1641869875446,0.00113684,3120.5,3120.4,55.18205988]
[1641869878047,0.00113684,3120.5,3120.4,51.53205988]
[1641869881404,0.00113684,3120.5,3120.4,51.83205988]
[1641869881603,0.00113684,3120.5,3120.4,52.83205988]
[1641869882008,0.00113684,3120.5,3120.4,51.53205988]
[1641869882203,3.2,3120.7,3120.5,49.99886316]
[1641869882679,2.72481074,3120.6,3120.5,49.99886316]
[1641869887215,2.72481074,3120.6,3120.5,50.00886316]
[1641869887608,6.02481074,3120.6,3120.5,50.00886316]
[1641869888806,6.48581074,3120.6,3120.5,50.00886316]
[1641869889007,6.48581074,3120.6,3120.5,46.53216316]
[1641869890247,8.10480211,3120.6,3120.5,46.53216316]
[1641869890647,8.40480211,3120.6,3120.5,46.53216316]
[1641869890846,8.10480211,3120.6,3120.5,46.53216316]
[1641869891046,4.80480211,3120.6,3120.5,46.53216316]
[1641869893649,8.00480211,3120.6,3120.5,14.43625786]
[1641869893897,7.70480211,3120.6,3120.5,14.43625786]
[1641869894900,4.79480211,3120.6,3120.5,14.42625786]
[1641869895099,5.63177903,3120.6,3120.5,14.42625786]
[1641869895402,4.01278766,3120.6,3120.5,14.42625786]
[1641869897647,10.22517216,3120.6,3120.5,5.35164047]
[1641869897847,11.30483555,3120.6,3120.5,5.35164047]
[1641869898251,11.30483555,3120.6,3120.5,2.1445777]
[1641869898547,11.30483555,3120.6,3120.2,0.90625266]
[1641869898548,5.09041003,3120.5,3120.2,0.90625266]
[1641869898748,0.48233352,3120.4,3120.2,0.90625266]
[1641869898947,1.91332063,3120.4,3120.3,0.00113684]
[1641869899146,5.6,3120.3,3120.2,0.90625266]
[1641869899348,6.061,3120.3,3120.2,0.90625266]
[1641869899648,5.6,3120.2,3119.5,0.9210154]
[1641869899847,0.80184,3119.9,3119.5,0.9210154]
[1641869900048,0.461,3119.8,3119.6,0.00397897]
[1641869901509,5.96132401,3119.7,3119.6,0.00397897]
[1641869901709,6.42232401,3119.7,3119.6,0.00397897]
[1641869903012,7.72232401,3119.7,3119.6,0.00397897]
[1641869903412,8.90447394,3119.7,3119.6,0.00397897]
[1641869903812,7.73466064,3119.7,3119.6,0.00397897]
[1641869904013,8.03466064,3119.7,3119.6,0.00397897]
[1641869904416,8.03466064,3119.7,3119.5,0.9210154]
[1641869904417,5.6,3119.6,3119.5,0.86099437]
[1641869904614,7.061,3119.6,3119.5,0.86099437]
[1641869906648,8.67889255,3119.6,3119.5,0.86099437]
[1641869907251,11.87889255,3119.6,3119.5,0.86099437]
[1641869907452,10.261,3119.6,3119.5,0.86099437]
[1641869908149,11.87889255,3119.6,3119.5,0.86099437]
[1641869908549,11.87889255,3119.6,3117.8,0.01235421]
[1641869908550,0.01066528,3119.0,3117.8,0.01235421]
[1641869908810,0.01242075,3118.8,3117.8,0.01235421]
[1641869909000,0.47342075,3118.8,3117.9,0.0096632]
[1641869909599,1.62725343,3118.8,3117.9,0.0096632]
[1641869909800,1.61483268,3118.8,3117.9,0.0096632]
[1641869910000,0.01185301,3118.6,3117.5,1.11700219]
[1641869910203,4.05976881,3118.6,3117.5,1.11700219]
[1641869910501,4.05976881,3118.6,3117.6,0.00170527]
[1641869911702,0.31568527,3117.9,3117.7,0.00708011]
[1641869915455,6.061,3117.8,3117.7,0.00708011]
[1641869915854,6.061,3117.8,3117.7,0.00821695]
[1641869916311,7.44625206,3117.8,3117.7,0.00821695]
[1641869916704,8.44625206,3117.8,3117.7,0.00821695]
[1641869916906,8.78878349,3117.8,3117.7,0.00821695]
[1641869917110,3.1,3117.7,3117.2,1.0]
[1641869917504,3.1,3117.7,3117.3,0.0022737]
[1641869918203,0.461,3117.6,3117.3,0.0022737]
[1641869918610,0.01076224,3117.5,3117.3,0.0022737]
[1641869919005,7.24841042,3117.6,3117.3,0.0022737]
[1641869919204,2.72778349,3117.4,3117.3,0.0022737]
[1641869919804,2.76545008,3117.5,3117.3,0.0022737]
[1641869920049,2.72778349,3117.5,3117.3,0.0022737]
[1641869920551,3.2,3117.8,3117.3,0.0022737]
[1641869921950,2.72746626,3117.7,3117.3,0.0022737]
[1641869926321,2.72746626,3117.7,3117.4,1.49010059]
[1641869926716,2.72746626,3117.7,3117.5,0.00113685]
[1641869930358,2.72746626,3117.7,3117.2,0.85113685]
[1641869930559,0.01614687,3117.6,3117.2,0.85113685]
[1641869930858,0.01614687,3117.6,3117.3,0.00113685]
[1641869931059,2.72746626,3117.7,3117.3,0.00113685]
[1641869931508,2.67746626,3117.7,3117.3,0.00113685]
[1641869931705,3.2,3117.8,3117.3,0.00113685]
[1641869932102,0.00113685,3117.7,3117.3,0.00113685]
[1641869932504,0.00113685,3117.7,3117.2,2.23782466]
[1641869932706,0.00170527,3117.6,3117.2,2.23782466]
[1641869933103,0.00113685,3117.5,3117.2,2.23782466]
[1641869933503,0.0022737,3117.7,3117.2,2.23782466]
[1641869933703,0.0022737,3117.7,3117.3,1.2204258]
[1641869933903,0.00170527,3117.6,3117.3,1.2204258]
[1641869934208,0.00113685,3117.5,3117.3,1.2204258]
[1641869934605,0.0022737,3117.7,3117.3,1.2204258]
[1641869935050,0.00170527,3117.6,3117.2,2.23782466]
[1641869935452,0.00113685,3117.5,3117.2,2.23782466]
[1641869935853,0.0022737,3117.7,3117.2,2.23782466]
[1641869936054,0.0022737,3117.7,3117.3,1.34002875]
[1641869936254,0.00170527,3117.6,3117.3,1.34002875]
[1641869936553,0.00113685,3117.5,3117.3,1.34002875]
[1641869936955,0.0022737,3117.7,3117.4,3.76215834]
[1641869937155,0.0022737,3117.7,3117.3,1.34002875]
[1641869937355,0.00170527,3117.6,3117.3,4.96791431]
[1641869937555,0.00170527,3117.6,3117.3,5.56791431]
[1641869937754,0.00113685,3117.5,3117.4,1.0]
[1641869938055,0.00113685,3117.5,3117.3,1.34002875]
[1641869940408,0.00113685,3117.5,3117.2,2.23782466]
[1641869940605,0.0287433,3117.4,3117.2,2.23782466]
[1641869940805,0.00113685,3117.5,3117.2,2.23782466]
[1641869941606,0.02234375,3117.4,3117.2,2.23782466]
[1641869942106,0.00113685,3117.5,3117.2,2.23782466]
[1641869942750,0.00113685,3117.5,3117.2,0.84915638]